[Event "CCC-GM 2022"]
[Site "Ballerup"]
[Date "2022.05.25"]
[Round "1.5"]
[White "Hacker, Jonas"]
[Black "Blomqvist, Erik"]
[Result "1/2-1/2"]
[ECO "B52"]
[WhiteElo "2396"]
[BlackElo "2523"]
[Annotator "TA"]
[PlyCount "63"]
[EventDate "2022.05.25"]
[EventType "tourn"]
[EventCountry "DEN"]
[SourceTitle "playchess.com"]
[Source "ChessBase"]
[SourceQuality "1"]
[TimeControl "5400+30"]

{[%evp 19,63,50,54,8,12,5,22,0,6,0,0,0,0,0,0,0,0,0,0,0,0,0,0,0,0,0,0,0,0,0,0,-11,-15,-28,-17,-23,-23,-22,-34,-27,-13,-14,0,0,0,0]} 1. e4 {[%emt 0:00:04]} c5 {[%emt 0:00:06]} 2. Nf3 {[%emt 0:00:06]} d6 {[%emt 0:00:07]} 3. Bb5+ {[%emt 0:00:22]} Bd7 {[%emt 0:00:21]} 4. Bxd7+ {[%emt 0:00:09]} Qxd7 {[%emt 0:00:28]} 5. c4 {[%emt 0:00:33]} Nc6 {[%emt 0:01:47]} 6. Nc3 {[%emt 0:00:41]} Nf6 {[%emt 0:01:12]} 7. d4 {[%emt 0:01:13]} cxd4 {[%emt 0:00:43]} 8. Nxd4 {[%emt 0:00:08]} Qg4 {[%emt 0:02:03]} 9. Qxg4 {[%emt 0:01:01]} Nxg4 {[%emt 0:00:05]} 10. Nxc6 {[%emt 0:00:20]} bxc6 {[%emt 0:00:08]} 11. c5 {11.b3 is a critical line. B52: Sicilian: Moscow Variation with 3...Bd7.} (11. f4 $14) 11... dxc5 $11 {[%emt 0:20:33]} 12. Ke2 {[%emt 0:01:27]} e6 {[%emt 0:03:26] [#]} 13. Bf4 $146 {[%emt 0:08:45][%mdl 1024] White has compensation.} ({Predecessor:} 13. Na4 Be7 14. f3 Ne5 15. Bf4 Nd7 16. Rac1 f5 17. exf5 exf5 18. Rhe1 O-O-O 19. Kf1 {1-0 (35) Oratovsky,M (2493)-Sande Edreira,J (2190) Balaguer 2001}) 13... f5 {[%emt 0:08:46]} 14. f3 {[%emt 0:04:40]} (14. Rac1 {is interesting.} O-O-O 15. Be3 Kc7 16. Na4) 14... Nf6 {[%emt 0:00:14]} 15. Rac1 {[%emt 0:04:24]} Be7 {[%emt 0:06:48]} 16. Rhd1 {[%emt 0:07:29]} Kf7 {[%emt 0:01:40]} 17. Bd6 {[%emt 0:13:06]} Rhd8 {[%emt 0:00:41]} 18. Bxe7 {[%emt 0:00:43]} Kxe7 {[%emt 0:00:07]} 19. exf5 {[%emt 0:04:15]} exf5 {[%emt 0:00:14]} 20. Rxd8 {[%emt 0:01:47]} Rxd8 {[%emt 0:00:22][%mdl 4096] Endgame KRN-KRN} 21. Na4 {[%emt 0:00:41]} Nd5 {[%emt 0:01:15]} 22. g3 {[%emt 0:01:34] Prevents Nf4+.} Rd6 {[%emt 0:02:31]} 23. Nxc5 {[%emt 0:03:51]} Rh6 {[%emt 0:03:17]} 24. Rh1 {[%emt 0:03:04]} g5 {[%emt 0:01:27]} 25. Nd3 {[%emt 0:03:46]} Kd6 {[%emt 0:02:44]} 26. Kf2 {[%emt 0:02:04]} a5 {[%emt 0:06:49]} 27. f4 {[%emt 0:09:54]} gxf4 {[%emt 0:01:55]} 28. Nxf4 {[%emt 0:00:39]} Nxf4 {[%emt 0:01:08]} 29. gxf4 {[%emt 0:00:05]} Kd5 {[%emt 0:03:37]} 30. Kg3 $1 {[%emt 0:01:54] The position is equal.} c5 {[%emt 0:01:10]} 31. Rd1+ {[%emt 0:03:50]} Ke4 {[%emt 0:00:18]} 32. Rc1 {[%emt 0:02:51] An even fight not without its subleties.  Weighted Error Value: White=0.06 (flawless) /Black=0.02 (flawless)} 1/2-1/2

[Event "CCC-GM 2022"]
[Site "Ballerup"]
[Date "2022.05.26"]
[Round "2.1"]
[White "Komarov, Dimitri"]
[Black "Nielsen, Viktor Haarmark"]
[Result "1-0"]
[ECO "E10"]
[WhiteElo "2493"]
[BlackElo "2323"]
[Annotator "TA"]
[PlyCount "71"]
[EventDate "2022.05.25"]
[EventType "tourn"]
[EventCountry "DEN"]
[SourceTitle "playchess.com"]
[Source "ChessBase"]
[SourceQuality "1"]
[TimeControl "5400+30"]

{[%evp 9,71,13,18,18,19,19,16,14,4,17,43,42,76,70,75,54,55,35,107,88,94,72,85,44,99,99,97,85,109,81,119,119,156,131,162,143,199,192,190,191,205,200,200,183,182,174,201,182,182,93,200,198,187,183,327,211,234,255,361,225,752,705,665,606]} 1. d4 {[%emt 0:00:02]} Nf6 {[%emt 0:00:08]} 2. c4 {[%emt 0:00:07]} e6 {[%emt 0:00:04]} 3. Nf3 {[%emt 0:00:12]} d5 {[%emt 0:00:07]} 4. g3 {[%emt 0:00:06]} Bb4+ {[%emt 0:01:03]} 5. Bd2 {[%emt 0:00:06]} Bd6 {[%emt 0:00:34]} 6. Bg2 {[%emt 0:00:29] E01: Catalan: Early deviations.} O-O {[%emt 0:00:38]} 7. O-O {[%emt 0:00:18]} c6 {[%emt 0:00:28]} 8. Bc3 $1 {[%emt 0:00:33][%mdl 4] The position is equal. is currently scoring better than 8.Qc2.} dxc4 {[%emt 0:09:34]} 9. a4 {[%emt 0:00:15] [#]} a5 $146 {[%emt 0:13:05]} ({Predecessor:} 9... b5 10. axb5 cxb5 11. Nfd2 Nd5 12. e4 Nb6 13. e5 Bc7 14. Bxa8 Nxa8 15. Rxa7 Nb6 {1-0 (35) Bjerre,J (2506)-Moiseenko,A (2635) Douglas 2019}) 10. Nfd2 {[%emt 0:02:54]} Ra6 {[%emt 0:10:41]} 11. Nxc4 {[%emt 0:04:12]} Bc7 {[%emt 0:00:30]} 12. Qb3 {[%emt 0:03:52] Inhibits b5.} Nd5 {[%emt 0:04:28][%cal Ob7b5]} 13. Rd1 {[%emt 0:01:59]} Bd7 {[%emt 0:16:04]} ({Black should play} 13... b5 $14 14. axb5 a4) 14. e4 {[%emt 0:07:09][%cal Be2e4,Be4e5][%mdl 32]} (14. Qxb7 $6 Nb6 15. Nxa5 (15. Bxa5 $2 Bc8 $19) 15... Bc8 16. Nxc6 Qd6 $11) 14... Nxc3 {[%emt 0:00:22]} 15. Nxc3 {[%emt 0:00:04][%cal Bb1c3,Bc3e4,Be4c5][%mdl 32]} Bc8 {[%emt 0:04:16]} 16. e5 {[%emt 0:09:10]} Qe7 {[%emt 0:04:03]} (16... Ra7 $14) 17. Ne4 $16 {[%emt 0:01:02]} Nd7 {[%emt 0:00:35]} 18. h4 {[%emt 0:10:05] White is much more active. The black rooks are badly placed.} h6 {[%emt 0:05:15]} 19. Qc2 {[%emt 0:03:13]} f6 {[%emt 0:04:46]} 20. exf6 $1 {[%emt 0:01:06]} gxf6 {[%emt 0:01:31] [#]} 21. Nc5 $1 {[%emt 0:01:54]} Nxc5 {[%emt 0:00:35]} 22. dxc5 {[%emt 0:00:49]} Qxc5 {[%emt 0:05:32]} (22... Kg7 $16) 23. Qg6+ $18 {[%emt 0:02:06]} Kh8 {[%emt 0:00:04]} 24. Qxh6+ {[%emt 0:00:08]} Kg8 {[%emt 0:00:01]} 25. Qg6+ {[%emt 0:15:34]} (25. Be4 $6 Qe7 $16) 25... Kh8 {[%emt 0:00:02] [#]} 26. Re1 $1 $40 {[%emt 0:02:48][%mdl 128] Black is in trouble. Dancing on a razor blade.} Qe7 {[%emt 0:04:00] [#]} (26... Bxg3 $2 27. Qh6+ Kg8 28. Re3 $18) 27. Bh3 $1 {[%emt 0:02:12][%cal Bg2h3,Bh3f5,Bf5e6][%mdl 32]} c5 {[%emt 0:00:23]} 28. Qh5+ {[%emt 0:03:40]} Kg8 {[%emt 0:00:32]} 29. Re4 {[%emt 0:01:30]} (29. Bf1 $18) 29... Rf7 {[%emt 0:02:54]} (29... Qh7 $16 {was worth a try.} 30. Qxh7+ (30. Qxc5 $2 Qxe4 31. Bg2 Qh7 $19) (30. Rg4+ Kh8 $14) 30... Kxh7) 30. Rae1 {[%emt 0:03:55] Rg4+ is the strong threat.} ({Don't do} 30. Rg4+ Rg7 31. Rxg7+ Qxg7) 30... Rg7 {[%emt 0:04:34]} 31. Qe2 {[%emt 0:07:37]} Kf7 {[%emt 0:00:10]} (31... Qd7 $142 32. Bxe6+ (32. Rxe6 Rxe6 33. Bxe6+ Qxe6 $16) 32... Rxe6) 32. Bf5 {[%emt 0:05:36]} (32. Qf3 Kg8 33. h5 Kh8 $18) 32... Bd7 {[%emt 0:07:40]} 33. b3 {[%emt 0:00:22]} Bc8 {[%emt 0:01:31]} (33... e5 $142) 34. Kh2 {[%emt 0:05:40]} Qd7 $2 {[%emt 0:00:41]} (34... Kg8 35. Kg2 (35. Bxe6+ Bxe6 36. Rxe6 Rxe6 $18) 35... Qe8 36. Bxe6+ Bxe6 37. Rxe6 Rxe6 38. Qxe6+ Qxe6 39. Rxe6 Kf7) 35. Qh5+ {[%emt 0:02:38]} Kf8 {[%emt 0:00:31]} 36. Bxe6 {[%emt 0:00:40] Weighted Error Value: White=0.16 (very precise) /Black=0.29 (precise)} 1-0

[Event "CCC-GM 2022"]
[Site "Ballerup"]
[Date "2022.05.26"]
[Round "2.2"]
[White "Brondt, Nicolai Kvist"]
[Black "Stefansson, Vignir Vatnar"]
[Result "0-1"]
[ECO "A61"]
[WhiteElo "2241"]
[BlackElo "2496"]
[Annotator "TA"]
[PlyCount "114"]
[EventDate "2022.05.25"]
[EventType "tourn"]
[EventCountry "DEN"]
[SourceTitle "playchess.com"]
[Source "ChessBase"]
[SourceQuality "1"]
[TimeControl "5400+30"]

{[%evp 13,114,39,56,25,12,18,32,-3,48,41,42,50,45,45,45,45,45,45,131,129,147,150,216,125,94,121,118,85,93,95,104,105,102,103,125,46,33,40,133,125,212,175,241,241,343,396,257,212,394,349,324,23,33,0,265,0,535,535,535,534,471,502,495,490,769,769,726,-265,-258,-380,-258,-258,-258,-258,-381,-552,-258,-258,-258,-329,-329,-373,-329,-1112,-270,-329,-329,-329,-329,-5107,-258,-243,-236,-329,-329,-329,-329,-29984,-29985,-29985,-29986,-29986,-29987]} 1. d4 {[%emt 0:00:03]} Nf6 {[%emt 0:01:01]} 2. c4 {[%emt 0:00:02]} e6 {[%emt 0:00:11]} 3. Nc3 {[%emt 0:00:04]} c5 {[%emt 0:00:10]} 4. d5 {[%emt 0:00:26]} d6 {[%emt 0:01:51]} 5. Nf3 {[%emt 0:01:16]} exd5 {[%emt 0:00:11]} 6. cxd5 {[%emt 0:00:03]} g6 {[%emt 0:00:06]} 7. Bf4 {[%emt 0:00:10]} Bg7 $1 {[%emt 0:00:38][%mdl 4] outshines the older 7...a6.} 8. e3 {[%emt 0:01:39] A61: Modern Benoni: Nf3 without early e4.} O-O {[%emt 0:00:51]} 9. h3 {[%emt 0:00:02]} Na6 {[%emt 0:03:58]} 10. Be2 {[%emt 0:01:01] [#] White is slightly better.} (10. Bxa6 $5 bxa6 11. Rc1 $11) 10... Bf5 $146 {[%emt 0:01:05]} (10... Nc7 $11) ({Predecessor:} 10... Nc7 11. a4 Re8 12. O-O Ne4 13. Rc1 b6 14. Bh2 Bb7 15. Bc4 a6 16. Nxe4 Rxe4 {0-1 (33) Le,Q (2709)-Fier,A (2560) Chess.com INT 2020}) 11. g4 $14 {[%emt 0:09:58]} Bc8 {[%emt 0:08:59]} 12. Nd2 $1 {[%emt 0:04:17]} Nc7 {[%emt 0:00:06]} 13. Nc4 {[%emt 0:02:34]} b5 {[%emt 0:02:57]} 14. Nxd6 {[%emt 0:04:24]} b4 {[%emt 0:00:05]} 15. Nce4 {[%emt 0:05:47]} (15. Nxc8 bxc3 16. d6 Qxc8 $17) 15... Nfxd5 {[%emt 0:02:10]} ({Better is} 15... Nxe4 $14 16. Nxe4 Bb7) 16. Bg5 $16 {[%emt 0:06:35]} (16. Nxc5 Bxb2 17. Nce4 Nxf4 18. exf4 Qe7 $17) 16... Qd7 {[%emt 0:01:02]} 17. Rc1 $1 {[%emt 0:11:19]} f5 {[%emt 0:14:42]} (17... Be5 $16) 18. Nxc8 {[%emt 0:04:57]} (18. Rxc5 $6 fxe4 19. Rxd5 Nxd5 20. Qxd5+ Kh8 $16) (18. gxf5 $1 $18 gxf5 19. Nxc8 (19. Rxc5 fxe4 20. Rxd5 Nxd5 $11) 19... Raxc8 20. Nxc5) 18... Raxc8 {[%emt 0:02:57]} 19. Nxc5 {[%emt 0:03:58]} Qf7 {[%emt 0:02:05]} 20. Nd3 {[%emt 0:11:21]} Ne6 {[%emt 0:01:51]} 21. Rxc8 {[%emt 0:04:20]} Rxc8 {[%emt 0:00:13]} 22. Bh4 {[%emt 0:02:33]} f4 {[%emt 0:00:38]} 23. Bf3 {[%emt 0:03:10]} Nb6 {[%emt 0:02:37]} 24. Nxf4 {[%emt 0:06:53]} (24. Nxb4 $2 g5 25. O-O gxh4 $19) ({White should play} 24. exf4 $1 $16 Nxf4 25. Nxf4 Qxf4 26. O-O) 24... Nxf4 $14 {[%emt 0:04:44]} 25. exf4 {[%emt 0:00:01]} Re8+ {[%emt 0:00:28]} (25... Qc4 $14) 26. Kf1 $16 {[%emt 0:00:13]} Qxa2 {[%emt 0:00:07]} (26... Bxb2 $16 27. Qb3 Bc3 28. Qxf7+ Kxf7) 27. Kg2 {[%emt 0:02:25]} Qxb2 {[%emt 0:00:18]} (27... Qf7 {might work better.}) 28. Re1 $18 {[%emt 0:01:08]} Rf8 {[%emt 0:04:31]} (28... Rxe1 $142 29. Qxe1 Qb3) 29. Be7 {[%emt 0:02:28]} Rxf4 {[%emt 0:01:39]} 30. Bc5 {[%emt 0:05:48] Inhibits Rd4. A strong pair of Bishops.} Bd4 $2 {[%emt 0:04:43]} (30... h6 {keeps fighting.} 31. Qd6 Qf6) 31. Re8+ {[%emt 0:00:32]} Kg7 {[%emt 0:00:04] [#]} 32. Re7+ $2 {[%emt 0:01:03]} (32. Re2 $1 $18 {[%cal Re2b2]} Qc3 33. Rc2 Qxc5 34. Rxc5 Bxc5 35. Qa1+ Rd4 36. Qxa7+ Nd7 37. Qc7) 32... Kg8 $1 $11 {[%emt 0:03:08] Hoping for ...Qxf2+.} 33. Re8+ $2 {[%emt 0:00:35]} (33. Re2 $14 Qc3 34. Re8+ Kg7 35. Re7+ Kg8 36. Bxd4 Qxd4 37. Rxa7) 33... Kg7 $18 {[%emt 0:00:05] [#]} 34. Re7+ $2 {[%emt 0:00:20]} ({White must play} 34. Re2 $1 $18 {[%cal Re2b2]} Qc3 35. Rc2) 34... Kf6 $2 {[%emt 0:02:32][%mdl 8192]} (34... Kg8 $1 $11 {and Black is okay.} 35. Re8+) 35. Bxd4+ {[%emt 0:05:58][%mdl 64] Deflection} Qxd4 {[%emt 0:00:16]} 36. Qe2 {[%emt 0:00:28]} Qd6 {[%emt 0:02:56] Against Qe6+} 37. Rxa7 {[%emt 0:00:15]} Nc4 {[%emt 0:01:41]} 38. Qe8 {[%emt 0:00:42] White wants to mate with h4.} Ne5 {[%emt 0:00:04]} (38... Rxf3 $142 39. Qf7+ (39. Kxf3 Ne5+ 40. Kg2 Qd5+ 41. Kh2 Qd6 $16) 39... Ke5 40. Qxf3 (40. Qxc4 Rxf2+ 41. Kxf2 Qb6+ 42. Kg2 Qxa7 $11) 40... Qd5) 39. Qh8+ {[%emt 0:00:41]} ({Weaker is} 39. Ba8 Rxf2+ 40. Kxf2 Qd4+ 41. Kg2 Qxa7 $17) 39... Kg5 {[%emt 0:00:50]} 40. h4+ $4 {[%emt 0:00:11][%mdl 8192]} (40. Ra5 $18 {was the only winning move.} Rxf3 41. Rxe5+ Kf4 42. Re1) 40... Kxh4 $19 {[%emt 0:00:03]} 41. Qxh7+ {[%emt 0:00:28]} Kg5 {[%emt 0:00:02]} 42. Ra5 {[%emt 0:00:48]} Rxf3 {[%emt 0:00:59] Chess con chili.} 43. Rxe5+ {[%emt 0:00:27]} Qxe5 {[%emt 0:00:06]} 44. Kxf3 {[%emt 0:00:12][%mdl 4096] Endgame KQ-KQ} Qf4+ {[%emt 0:00:50]} (44... b3 $142 45. Qb7 b2) 45. Ke2 {[%emt 0:00:01]} Qxg4+ {[%emt 0:00:19]} 46. f3 {[%emt 0:00:30] White threatens Qe7+ and mate.} Qc4+ {[%emt 0:00:09]} 47. Ke3 {[%emt 0:00:21]} Qc5+ {[%emt 0:01:05]} 48. Kd3 $2 {[%emt 0:00:20]} (48. Ke2 Qe5+ 49. Kd3) 48... Qd5+ $2 {[%emt 0:01:46]} (48... b3 {Threatens to win with ...Qc2+.} 49. Qb7 Qc2+ 50. Ke3 Qc3+ 51. Kf2 Qd4+ 52. Kg2 b2) 49. Ke3 {[%emt 0:00:13]} Qe5+ {[%emt 0:00:03]} 50. Kd3 {[%emt 0:00:56]} b3 {[%emt 0:00:29] aiming for ...Qf6.} 51. Qb7 $2 {[%emt 0:00:17]} (51. f4+ Qxf4 52. Kc3) 51... b2 $2 {[%emt 0:00:29]} (51... Kf4 {( -> ...Qf5+)} 52. Qb4+ Kxf3) 52. Kc2 {[%emt 0:00:18]} Kf4 {[%emt 0:00:42] Strongly threatening ...g5.} 53. Kb1 {[%emt 0:01:38]} g5 {[%emt 0:00:55]} 54. Qc6 {[%emt 0:00:49]} Kg3 {[%emt 0:01:15] And now ...Qd4 would win.} 55. Qb7 $2 {[%emt 0:00:28]} (55. Ka2 $19) 55... Qc3 {[%emt 0:00:24] Black mates.} 56. Ka2 {[%emt 0:00:31]} Qc1 {[%emt 0:00:23]} 57. Qb8+ {[%emt 0:00:29]} Kg2 {[%emt 0:00:11] Weighted Error Value: White=0.74/Black=0.72} 0-1

[Event "CCC-GM 2022"]
[Site "Ballerup"]
[Date "2022.05.26"]
[Round "2.3"]
[White "Heimisson, Hilmir Freyr"]
[Black "Olsen, Filip Boe"]
[Result "1-0"]
[ECO "B51"]
[WhiteElo "2323"]
[BlackElo "2407"]
[Annotator "TA"]
[PlyCount "115"]
[EventDate "2022.05.25"]
[EventType "tourn"]
[EventCountry "DEN"]
[SourceTitle "playchess.com"]
[Source "ChessBase"]
[SourceQuality "1"]
[TimeControl "5400+30"]

{[%evp 9,115,11,17,14,8,11,8,9,19,14,13,12,13,8,9,13,3,10,5,3,18,8,12,15,18,21,52,30,31,28,31,12,25,16,24,0,-5,-37,-35,-40,-28,-76,-29,-28,-33,-36,0,-8,12,8,16,0,20,16,18,0,0,0,-8,-8,0,-10,-19,-25,0,7,7,6,3,6,62,62,76,53,67,66,57,61,75,84,118,95,88,38,38,22,39,31,27,34,28,24,39,43,77,85,102,93,586,549,837,837,830,806,790,787,838,781]} 1. e4 {[%emt 0:02:38]} c5 {[%emt 0:00:13]} 2. Nf3 {[%emt 0:00:40]} d6 {[%emt 0:00:08]} 3. Bb5+ {[%emt 0:00:07]} Nd7 {[%emt 0:00:14]} 4. O-O {[%emt 0:00:09]} a6 {[%emt 0:00:15]} 5. Bd3 {[%emt 0:00:09]} Ngf6 {[%emt 0:01:16]} 6. Re1 {[%emt 0:00:43] B51: Sicilian: Moscow Variation (3 Bb5+) without 3...Bd7.} e6 {[%emt 0:00:33]} 7. c3 {[%emt 0:00:09]} b5 {[%emt 0:01:23]} 8. Bc2 {[%emt 0:00:08] The position is equal.} Bb7 {[%emt 0:01:25]} 9. d4 {[%emt 0:00:49]} Be7 {[%emt 0:02:01]} 10. Nbd2 {[%emt 0:07:39]} Qc7 {[%emt 0:04:01]} 11. Nf1 {[%emt 0:02:16]} Rc8 {[%emt 0:03:58]} 12. Bd3 {[%emt 0:01:43]} O-O {[%emt 0:11:10]} 13. Ng3 {[%emt 0:00:10]} Rfe8 {[%emt 0:02:03]} 14. h3 {[%emt 0:11:18] [#]} Nf8 $146 {[%emt 0:03:30]} ({Predecessor:} 14... Nb6 15. Qe2 Nfd7 16. Ng5 h6 17. Nf3 Nf8 18. Nh5 Ng6 19. Nh2 Bf8 20. Ng4 Nd7 {1-0 (57) Hansen,E (2606)-Firouzja,A (2749) Chess.com INT 2021}) 15. Bg5 {[%emt 0:02:10]} Ng6 {[%emt 0:05:12]} 16. Qe2 {[%emt 0:08:15]} h6 {[%emt 0:06:34]} 17. Bd2 {[%emt 0:02:57]} Nd7 {[%emt 0:04:09]} 18. Rad1 {[%emt 0:01:38]} Qb6 {[%emt 0:08:53]} 19. a3 {[%emt 0:07:06]} Bc6 {[%emt 0:05:48]} 20. Be3 {[%emt 0:04:08][%cal Od4d5]} Qb7 {[%emt 0:01:25]} 21. Bb1 {[%emt 0:08:19]} Nf6 {[%emt 0:03:20][%cal Rf6e4]} 22. Qd3 {[%emt 0:02:46]} a5 {[%emt 0:02:42]} 23. Nh2 {[%emt 0:08:19]} cxd4 {[%emt 0:04:21]} 24. cxd4 {[%emt 0:02:15]} b4 {[%emt 0:00:24]} 25. Ng4 {[%emt 0:01:23] [#]} (25. axb4 $1 $11 {is more appropriate.} Qxb4 26. Bd2 Qxb2 27. Bxa5) 25... bxa3 {[%emt 0:02:10]} (25... Nxg4 $1 $17 26. hxg4 bxa3 27. Qxa3 d5) 26. Nxf6+ $11 {[%emt 0:02:57]} Bxf6 {[%emt 0:00:18]} 27. bxa3 {[%emt 0:00:54]} Ba4 {[%emt 0:03:08]} 28. Rc1 {[%emt 0:04:32]} Qb5 {[%emt 0:02:38]} 29. Ne2 {[%emt 0:02:18]} d5 {[%emt 0:02:49]} 30. Qd2 {[%emt 0:01:56]} Be7 {[%emt 0:07:02]} 31. Nc3 {[%emt 0:02:15]} Qb3 {[%emt 0:01:38]} (31... Qd7 {feels hotter.} 32. Nxa4 Qxa4 33. Rxc8 Rxc8 34. exd5 exd5 35. Bxh6 Qxa3 36. Bxg6 fxg6 37. Qe2 Kh7) 32. Bc2 {[%emt 0:07:16]} (32. Nxa4 {keeps more tension.} Qxa4 33. Rxc8 Rxc8 34. exd5 exd5 35. Bxh6 Qxa3 36. Bxg6 fxg6 37. Qe2) 32... Qxc3 {[%emt 0:00:42]} 33. Bxa4 {[%emt 0:00:13]} Qxd2 {[%emt 0:00:23]} 34. Bxd2 {[%emt 0:00:01]} Rxc1 {[%emt 0:01:09]} 35. Rxc1 {[%emt 0:03:19]} Rd8 {[%emt 0:01:21]} 36. exd5 {[%emt 0:03:03]} ({Not} 36. Bxa5 $2 Ra8 37. exd5 exd5 $19) 36... Rxd5 {[%emt 0:00:28]} 37. Rc8+ {[%emt 0:00:06]} Kh7 {[%emt 0:00:29]} 38. Be8 {[%emt 0:02:02]} Rxd4 {[%emt 0:08:36]} 39. Bxa5 {[%emt 0:00:07]} Bxa3 {[%emt 0:01:30]} (39... Ne5 $11) 40. Bxf7 $14 {[%emt 0:00:47] This bishop pair is nice.} Nf8 {[%emt 0:00:31]} 41. Rc3 {[%emt 0:00:44]} Bd6 {[%emt 0:00:23][%cal Rd4d1]} 42. g3 {[%emt 0:00:27]} Rd5 {[%emt 0:00:16]} 43. Bb6 {[%emt 0:00:32]} Rf5 {[%emt 0:00:36]} 44. Be8 {[%emt 0:00:02] White is more active.} Ng6 {[%emt 0:00:48]} 45. Bc6 {[%emt 0:00:35] Black must now prevent Be4.} Re5 {[%emt 0:00:18] Inhibits Be4.} 46. Ba4 {[%emt 0:00:41]} (46. Kf1 $16) 46... Ne7 {[%emt 0:00:19]} 47. Rf3 {[%emt 0:00:37]} Nd5 {[%emt 0:00:27]} 48. Bd4 {[%emt 0:00:30]} Re1+ {[%emt 0:00:07]} 49. Kg2 {[%emt 0:00:07]} Be5 {[%emt 0:00:22]} 50. Bc2+ {[%emt 0:00:31]} Kg8 {[%emt 0:00:02]} 51. Bc5 {[%emt 0:00:41][%csl Gc5][%cal Rf3f8]} Bf6 {[%emt 0:00:14] [#] ...Rc1 is the strong threat.} 52. Bg6 $1 {[%emt 0:00:32] Strongly threatening Rb3.} Rc1 {[%emt 0:00:27]} 53. Ra3 {[%emt 0:00:34] Ra8+ would kill now.} Nc7 {[%emt 0:01:20][%mdl 8192] Inhibits Ra8+. This move loses the game for Black.} (53... Ra1 $16 {is a better chance.}) 54. Bd6 $18 {[%emt 0:00:38] White is clearly winning.} Bd8 {[%emt 0:00:29]} 55. Rf3 {[%emt 0:00:23][%csl Gd6][%cal Rf3f8]} Bf6 {[%emt 0:00:20]} 56. Rb3 {[%emt 0:00:25] Threatening mate with Rb8+.} Na6 {[%emt 0:01:40] Against Rb8+} 57. Rb6 {[%emt 0:00:14]} Ra1 {[%emt 0:00:30]} 58. Rc6 {[%emt 0:00:31] Weighted Error Value: White=0.07 (flawless) /Black=0.25 (precise)} 1-0

[Event "CCC-GM 2022"]
[Site "Ballerup"]
[Date "2022.05.26"]
[Round "2.4"]
[White "Haubro, Martin"]
[Black "Hacker, Jonas"]
[Result "0-1"]
[ECO "B48"]
[WhiteElo "2428"]
[BlackElo "2396"]
[Annotator "TA"]
[PlyCount "50"]
[EventDate "2022.05.25"]
[EventType "tourn"]
[EventCountry "DEN"]
[SourceTitle "playchess.com"]
[Source "ChessBase"]
[SourceQuality "1"]
[TimeControl "5400+30"]

{[%evp 11,50,18,41,22,17,25,41,33,50,41,22,10,41,52,47,56,79,-91,-64,-58,-53,-67,-49,-44,-62,-268,-222,-205,-205,-628,-614,-577,-598,-817,-824,-920,-902,-902,-886,-1219,-1186]} 1. e4 {[%emt 0:00:03] Edouard,Romain} c5 {[%emt 0:00:09]} 2. Nf3 {[%emt 0:00:04]} e6 {[%emt 0:00:09]} 3. d4 {[%emt 0:00:05]} cxd4 {[%emt 0:00:09]} 4. Nxd4 {[%emt 0:00:03]} Nc6 {[%emt 0:00:11][%cal Bb8c6,Bc6e5,Be5g4][%mdl 32]} 5. Nc3 {[%emt 0:00:04]} Qc7 {[%emt 0:00:46]} 6. Be3 {[%emt 0:00:05]} a6 {[%emt 0:00:12]} 7. Qf3 {[%emt 0:00:21] B48: Sicilian: Taimanov: 5 Nc3 Qc7 6 Be3 a6 without Be2.} Nf6 {[%emt 0:01:26][%cal Of8a3]} 8. O-O-O {[%emt 0:00:36]} Ne5 {[%emt 0:01:02]} 9. Qg3 {[%emt 0:00:42] White is slightly better.} b5 {[%emt 0:00:35]} 10. f4 {[%emt 0:00:33]} Neg4 {[%emt 0:00:23]} 11. Bd2 {[%emt 0:17:56]} b4 {[%emt 0:00:39]} (11... Qa7 $5 {[%cal Ra7d4]} 12. Be3 b4 $15) 12. Na4 {[%emt 0:02:40]} h5 {[%emt 0:00:38]} 13. Bd3 {[%emt 0:03:14]} d5 {[%emt 0:01:05] [#]} 14. h3 $146 {[%emt 0:34:45]} (14. e5 $1 $16 {[%cal Re5f6] keeps the pressure on.} Bd7 15. exf6 Bxa4 16. b3) ({Predecessor:} 14. e5 Ne4 15. Bxe4 dxe4 16. h3 Nh6 17. Qb3 Bd7 18. Bxb4 Rb8 19. Bxf8 Rxb3 20. Bd6 {1-0 (27) Nepomniachtchi,I (2789)-Pichot,A (2630) chess24.com INT 2021 CBM 201 [Edouard,Romain]}) 14... dxe4 $17 {[%emt 0:05:04] Hoping for ...h4.} 15. hxg4 {[%emt 0:02:08][%cal Bh3g4,Bg4g5][%mdl 32] Black must now prevent g5!} exd3 {[%emt 0:02:49]} 16. g5 $1 {[%emt 0:12:10]} Ng4 $36 {[%emt 0:16:47][%mdl 2048] ...Bd7 is the strong threat. Black has the initiative.} (16... dxc2 17. Rde1 Ng4 18. g6 $17) 17. Qxd3 {[%emt 0:03:59]} Bd7 {[%emt 0:03:02]} 18. Nxe6 $2 {[%emt 0:16:14] This costs White the game.} fxe6 {[%emt 0:08:05]} 19. Qg6+ {[%emt 0:00:06]} Kd8 {[%emt 0:01:07]} 20. Bxb4 $2 {[%emt 0:02:31]} (20. Rhe1 Qc6 21. f5) 20... Qxf4+ $19 {[%emt 0:12:05] Black is clearly winning.} ({Not} 20... Bxb4 21. Qxg7 Rf8 {[#]} 22. Nb6 $1 $14 {[%mdl 512]}) 21. Kb1 {[%emt 0:00:48] White wants to mate with Ba5+.} Qxb4 {[%emt 0:03:10]} 22. Qxe6 {[%emt 0:01:18][%csl Gd1][%cal Re6d7]} Qxa4 {[%emt 0:03:06]} 23. Qb6+ {[%emt 0:00:50]} Kc8 {[%emt 0:04:08]} ({Less strong is} 23... Ke8 24. Rhe1+ Be7 25. Qd6 $16) 24. Rhe1 {[%emt 0:00:05] [#]} Ba3 $1 {[%emt 0:03:48] Strongly threatening ...Rb8.} 25. Rd3 {[%emt 0:00:52]} (25. Rd4 Qc6) 25... Qb4 {[%emt 0:01:02] Weighted Error Value: White=0.77/Black=0.04 (flawless)} 0-1